bitfinex-derivatives/quotes_BTCF0:USTF0_20250921
["timestamp","ask_amount","ask_price","bid_price","bid_amount"]
[1758417980755,0.97182148,115620.0,115610.0,0.65915781]
[1758417983560,0.97182148,115620.0,115610.0,0.81483013]
[1758417984356,0.97182148,115620.0,115610.0,0.61248508]
[1758417986859,0.97182148,115620.0,115610.0,0.45681276]
[1758417993967,0.97182148,115620.0,115610.0,0.61248508]
[1758417994865,0.97182148,115620.0,115610.0,0.45681276]
[1758417996167,0.97182148,115620.0,115610.0,0.1902]
[1758417996368,0.97182148,115620.0,115610.0,0.45681276]
[1758417997573,0.97182148,115620.0,115610.0,0.65915781]
[1758417998270,0.19166148,115620.0,115610.0,0.65915781]
[1758417998474,0.97178148,115620.0,115610.0,0.65915781]
[1758418004173,0.97178148,115620.0,115610.0,0.65835781]
[1758418009783,1.23839928,115620.0,115610.0,0.65836285]
[1758418020500,1.23839928,115620.0,115610.0,0.4560178]
[1758418020693,1.23839928,115620.0,115610.0,0.61168956]
[1758418022200,1.23839928,115620.0,115610.0,0.4560178]
[1758418027700,0.97178148,115620.0,115610.0,0.4560178]
[1758418028008,1.23839928,115620.0,115610.0,0.4560178]
[1758418029707,1.23839928,115620.0,115610.0,0.1894]
[1758418030007,1.23839928,115620.0,115610.0,0.4560178]
[1758418035702,1.23839928,115620.0,115610.0,0.61169037]
[1758418039812,1.23839928,115620.0,115610.0,0.65836285]
[1758418047414,1.23839928,115620.0,115610.0,0.39174505]
[1758418047614,1.23839928,115620.0,115610.0,0.54742363]
[1758418047814,1.23839928,115620.0,115610.0,0.81404143]
[1758418048215,1.23839928,115620.0,115610.0,0.61169638]
[1758418053015,1.59919928,115620.0,115610.0,0.61169638]
[1758418053924,1.59919928,115620.0,115610.0,0.4560178]
[1758418066138,1.59919928,115620.0,115610.0,0.61169638]
[1758418069740,1.33258148,115620.0,115610.0,0.34507858]
[1758418070447,0.55246148,115620.0,115610.0,0.34507858]
[1758418070834,0.55246148,115620.0,115610.0,0.1894]
[1758418074040,1.33274148,115620.0,115610.0,0.1894]
[1758418080850,1.33274148,115620.0,115610.0,0.39174505]
[1758418082052,1.33274148,115620.0,115610.0,0.1894]
[1758418083251,1.33274148,115620.0,115610.0,0.39174505]
[1758418084949,1.33274148,115620.0,115610.0,0.65837338]
[1758418089157,1.33274148,115620.0,115610.0,0.81405126]
[1758418089455,1.33274148,115620.0,115610.0,0.61170621]
[1758418095559,1.33274148,115620.0,115610.0,0.34507788]
[1758418095755,1.33274148,115620.0,115610.0,0.61170621]
[1758418099762,1.33274148,115620.0,115610.0,0.45602833]
[1758418100062,1.33274148,115620.0,115610.0,0.65837338]
[1758418102067,1.33274148,115620.0,115610.0,0.39174505]
[1758418102266,1.33274148,115620.0,115610.0,0.65837338]
[1758418113262,0.55246148,115620.0,115610.0,0.65837338]
[1758418113466,0.55246148,115620.0,115610.0,0.74482018]
[1758418113467,1.33266148,115620.0,115610.0,0.74482018]
[1758418115777,0.55246148,115620.0,115610.0,0.74482018]
[1758418116074,1.33266148,115620.0,115610.0,0.74482018]
[1758418118372,0.97186148,115620.0,115610.0,0.74482018]
[1758418131794,1.23847933,115620.0,115610.0,0.7448097]
[1758418135995,0.45827933,115620.0,115610.0,0.7448097]
[1758418136293,1.23843933,115620.0,115610.0,0.7448097]
[1758418141106,0.45827933,115620.0,115610.0,0.7448097]
[1758418141301,1.23843933,115620.0,115610.0,0.7448097]
[1758418143611,1.23843933,115620.0,115610.0,0.39174505]
[1758418143903,1.23843933,115620.0,115610.0,0.6583629]
[1758418147107,1.23843933,115620.0,115610.0,0.45601785]
[1758418148508,1.23843933,115620.0,115610.0,0.61169643]
[1758418150809,1.23843933,115620.0,115610.0,0.45601785]
[1758418154914,1.23843933,115620.0,115610.0,0.61169643]
[1758418162017,1.23843933,115620.0,115610.0,0.45601785]
[1758418162815,1.23843933,115620.0,115610.0,0.61169602]
[1758418163611,1.23843933,115620.0,115610.0,0.45601785]
[1758418165218,1.23843933,115620.0,115610.0,0.61169602]
[1758418172215,1.23843933,115620.0,115610.0,0.34507817]
[1758418172420,1.23843933,115620.0,115610.0,0.61169602]
[1758418173219,1.23843933,115620.0,115610.0,0.45601785]
[1758418174122,1.23843933,115620.0,115610.0,0.61169602]
[1758418174916,1.23843933,115620.0,115610.0,0.45601785]
[1758418177230,1.23843933,115620.0,115610.0,0.6583629]
[1758418180730,1.23843933,115620.0,115610.0,0.61169653]
[1758418182535,0.97182148,115620.0,115610.0,0.61169653]
[1758418182830,1.23843933,115620.0,115610.0,0.61169653]
[1758418186928,0.19166148,115620.0,115610.0,0.61169653]
[1758418187129,1.23871933,115620.0,115610.0,0.61169653]
[1758418193837,0.97210148,115620.0,115610.0,0.61170003]
[1758418197642,1.33290148,115620.0,115610.0,0.61170003]
[1758418198040,1.33290148,115620.0,115610.0,0.34507868]
[1758418198241,1.33290148,115620.0,115610.0,0.61170003]
[1758418202049,1.33290148,115620.0,115610.0,0.34507868]
[1758418202249,1.33290148,115620.0,115610.0,0.61170003]
[1758418209655,0.55246148,115620.0,115610.0,0.61170003]
[1758418209854,1.33286148,115620.0,115610.0,0.61170003]
[1758418225264,1.33286148,115620.0,115610.0,0.81404508]
[1758418225668,1.33286148,115620.0,115610.0,0.6583664]
[1758418228872,1.33286148,115620.0,115610.0,0.81404638]
[1758418229169,1.33286148,115620.0,115610.0,0.61170133]
[1758418230366,1.33286148,115620.0,115610.0,0.45602135]
[1758418230567,1.33286148,115620.0,115610.0,0.61170133]
[1758418235577,0.97206148,115620.0,115610.0,0.61170133]
[1758418235776,1.33286148,115620.0,115610.0,0.61170133]
[1758418239374,1.33286148,115620.0,115610.0,0.34507998]
[1758418239574,1.33286148,115620.0,115610.0,0.61170133]
[1758418239973,1.33286148,115620.0,115610.0,0.45602135]
[1758418240970,1.33286148,115620.0,115610.0,0.6583664]
[1758418242277,0.55246148,115620.0,115610.0,0.6583664]
[1758418242479,1.33266148,115620.0,115610.0,0.6583664]
[1758418243378,1.33266148,115620.0,115610.0,0.45602135]
[1758418244783,1.33266148,115620.0,115610.0,0.61170123]
[1758418250384,1.33266148,115620.0,115610.0,0.45602135]
[1758418251879,1.33266148,115620.0,115610.0,0.6583664]
[1758418252979,0.97186148,115620.0,115610.0,0.81404599]
[1758418253177,1.33266148,115620.0,115610.0,0.61170094]
[1758418255784,1.59927352,115620.0,115610.0,0.61169163]
[1758418258788,1.33266148,115620.0,115610.0,0.61169163]
[1758418258978,1.59927352,115620.0,115610.0,0.61169163]
[1758418261688,1.33266148,115620.0,115610.0,0.61169163]
[1758418261989,1.59927352,115620.0,115610.0,0.61169163]
[1758418262885,0.55246148,115620.0,115610.0,0.61169163]
[1758418263085,1.59923352,115620.0,115610.0,0.61169163]
[1758418269487,0.81907352,115620.0,115610.0,0.61169163]
[1758418269688,1.33262148,115620.0,115610.0,0.45601204]
[1758418269884,1.59923352,115620.0,115610.0,0.45601204]
[1758418271492,1.59923352,115620.0,115610.0,0.61169163]
[1758418276387,1.23843352,115620.0,115610.0,0.61169163]
[1758418283099,1.23843352,115620.0,115610.0,0.34507959]
[1758418283400,1.23843352,115620.0,115610.0,0.61169163]
[1758418287504,0.97182148,115620.0,115610.0,0.61169163]
[1758418287694,1.23843352,115620.0,115610.0,0.61169163]
[1758418292505,0.97182148,115620.0,115610.0,0.61169163]
[1758418292706,1.23843352,115620.0,115610.0,0.61169163]
[1758418292896,0.97182148,115620.0,115610.0,0.61169163]
[1758418293096,1.23843352,115620.0,115610.0,0.61169163]
[1758418293305,1.23843352,115620.0,115610.0,0.34507959]
[1758418293604,1.23843352,115620.0,115610.0,0.61169163]
[1758418305805,1.23843352,115620.0,115610.0,0.45601204]
[1758418306606,1.23843352,115620.0,115610.0,0.61168176]
[1758418307606,1.23843352,115620.0,115610.0,0.34506972]
[1758418307808,1.23843352,115620.0,115610.0,0.61168176]
[1758418310707,1.23843352,115620.0,115610.0,0.45601204]
[1758418312108,1.23843352,115620.0,115610.0,0.65835709]
[1758418312811,1.23843352,115620.0,115610.0,0.39174505]
[1758418313010,1.23843352,115620.0,115610.0,0.65835709]
[1758418315708,1.23843352,115620.0,115610.0,0.39174505]
[1758418315908,0.97182148,115620.0,115610.0,0.6583605]
[1758418321515,0.97182148,115620.0,115610.0,0.39174505]
[1758418321713,0.97182148,115620.0,115610.0,0.6583605]
[1758418325316,0.97182148,115620.0,115610.0,0.45601545]
[1758418328922,0.97182148,115620.0,115610.0,0.6583605]
[1758418336829,0.97182148,115620.0,115610.0,0.39174505]
[1758418337027,0.97182148,115620.0,115610.0,0.6583605]
[1758418342535,0.9032793,115620.0,115610.0,0.6583605]
[1758418343033,0.97237463,115620.0,115610.0,0.6583605]
[1758418345331,0.97237463,115620.0,115610.0,0.39174505]
[1758418345529,1.23899008,115620.0,115610.0,0.39174505]
[1758418345728,1.23899008,115620.0,115610.0,0.1894]
[1758418345930,0.97237463,115620.0,115610.0,0.1894]
[1758418350544,1.23899008,115620.0,115610.0,0.1894]
[1758418351043,0.97237463,115620.0,115610.0,0.1894]
[1758418351248,1.23899008,115620.0,115610.0,0.1894]
[1758418353549,0.97237463,115620.0,115610.0,0.1894]
[1758418356448,0.97237463,115620.0,115610.0,0.39174505]
[1758418366756,0.19221463,115620.0,115610.0,0.39174505]
[1758418366957,0.97281463,115620.0,115610.0,0.39174505]
[1758418368859,0.97281463,115620.0,115610.0,0.6583605]
[1758418369557,0.19221463,115620.0,115610.0,0.6583605]
[1758418369749,0.97277463,115620.0,115610.0,0.6583605]
[1758418372055,0.97277463,115620.0,115610.0,0.45601545]
[1758418374662,0.97277463,115620.0,115610.0,0.6583605]
[1758418377761,1.23938938,115620.0,115610.0,0.6583598]
[1758418379459,1.23938938,115620.0,115610.0,0.45601475]
[1758418383565,0.97277463,115620.0,115610.0,0.45601475]
[1758418383769,1.23938938,115620.0,115610.0,0.45601475]
[1758418384168,1.23938938,115620.0,115610.0,0.6583598]
[1758418388773,0.97277463,115620.0,115610.0,0.6583598]
[1758418388973,1.23938938,115620.0,115610.0,0.6583598]
[1758418390067,1.23938938,115620.0,115610.0,0.39174505]
[1758418390272,1.23938938,115620.0,115610.0,0.6583598]
[1758418404682,0.45882938,115620.0,115610.0,0.6583598]
[1758418404884,1.23898938,115620.0,115610.0,0.6583598]
[1758418409289,0.97237463,115620.0,115610.0,0.6583598]
[1758418409491,1.23898938,115620.0,115610.0,0.6583598]
[1758418410292,0.45882938,115620.0,115610.0,0.6583598]
[1758418410590,1.23898938,115620.0,115610.0,0.6583598]
[1758418410792,0.97237463,115620.0,115610.0,0.6583598]
[1758418410992,1.23898938,115620.0,115610.0,0.6583598]
[1758418420595,1.16989405,115620.0,115610.0,0.6583598]
[1758418421097,1.16989405,115620.0,115610.0,0.39174505]
[1758418421289,1.16989405,115620.0,115610.0,0.6583598]
[1758418424693,1.16989405,115620.0,115610.0,0.39174505]
[1758418424900,1.16989405,115620.0,115610.0,0.6583598]
[1758418429903,0.9032793,115620.0,115610.0,0.6583598]
[1758418430104,1.16989405,115620.0,115610.0,0.6583598]
[1758418432412,1.16989405,115620.0,115610.0,0.45601475]
[1758418435621,0.9032793,115620.0,115610.0,0.45601475]
[1758418435821,1.16989405,115620.0,115610.0,0.45601475]
[1758418436021,1.16985405,115620.0,115610.0,0.45601475]
[1758418437223,1.16985405,115620.0,115610.0,0.6583598]
[1758418437716,1.16985405,115620.0,115610.0,0.65835426]
[1758418437717,0.9032393,115620.0,115610.0,0.65835426]
[1758418440933,0.9032393,115620.0,115610.0,0.39174505]
[1758418441128,0.9032393,115620.0,115610.0,0.65835426]
[1758418442631,0.9032393,115620.0,115610.0,0.39174505]
[1758418442823,0.9032393,115620.0,115610.0,0.65835426]
[1758418452133,0.9032393,115620.0,115610.0,0.39174505]
[1758418452526,0.9032393,115620.0,115610.0,0.65835426]
[1758418456036,0.9032393,115620.0,115610.0,0.65935426]
[1758418462539,0.1231193,115620.0,115610.0,0.65935426]
[1758418462744,0.1101393,115620.0,115610.0,1.11341056]
[1758418463047,0.1238393,115620.0,115610.0,1.10660056]
[1758418468349,0.9039593,115620.0,115610.0,1.10660056]
[1758418470150,0.1238393,115620.0,115610.0,1.10660056]
[1758418477659,0.1238393,115620.0,115610.0,1.02015426]
[1758418478156,0.1238393,115620.0,115610.0,1.10660046]
[1758418489873,0.1238393,115620.0,115610.0,0.74580046]
[1758418490074,0.1238393,115620.0,115610.0,1.10660046]
[1758418491477,0.1238393,115620.0,115610.0,0.90425541]
[1758418499784,0.1238393,115620.0,115610.0,1.17076762]
[1758418499982,0.1238393,115620.0,115610.0,1.37311267]
[1758418500182,0.1238393,115620.0,115610.0,1.10655196]
[1758418506387,0.1238393,115620.0,115610.0,1.02010576]
[1758418507288,0.1238393,115620.0,115610.0,0.81776071]
[1758418508889,0.1238393,115620.0,115610.0,1.08432142]
[1758418513291,0.1238393,115620.0,115610.0,1.28666647]
[1758418514292,0.1238393,115620.0,115610.0,1.37311267]
[1758418516292,0.1238393,115620.0,115610.0,1.10655196]
[1758418516693,0.1238393,115620.0,115610.0,0.90420691]
[1758418517487,0.1238393,115620.0,115610.0,0.54340691]
[1758418517692,0.1238393,115620.0,115610.0,0.90420691]
[1758418517992,0.1238393,115620.0,115610.0,1.10655196]
[1758418518595,0.1238393,115620.0,115610.0,1.02010576]
[1758418523892,0.1238393,115620.0,115610.0,0.81776071]
[1758418524299,0.1238393,115620.0,115610.0,1.08432142]
[1758418526291,0.1238393,115620.0,115610.0,1.28666647]
[1758418527501,0.1238393,115620.0,115610.0,0.72352142]
[1758418527699,0.1238393,115620.0,115610.0,1.08432142]
[1758418532704,0.1238393,115620.0,115610.0,0.81776071]
[1758418534907,0.1238393,115620.0,115610.0,1.02010576]
[1758418535805,0.1238393,115620.0,115610.0,1.1757577]
[1758418536200,0.1238393,115620.0,115610.0,0.97341265]
[1758418539006,0.1238393,115620.0,115610.0,0.81776071]
[1758418540608,0.1238393,115620.0,115610.0,1.08432142]
[1758418543009,0.1238393,115620.0,115610.0,1.17076732]
[1758418546909,0.1238393,115620.0,115610.0,1.37311237]
[1758418548917,0.1238393,115620.0,115610.0,1.01231237]
[1758418549215,0.1238393,115620.0,115610.0,1.37311237]
[1758418555420,0.1238393,115620.0,115610.0,1.17076732]
[1758418555921,0.1238393,115620.0,115610.0,0.80996732]
[1758418556221,0.1238393,115620.0,115610.0,1.17076732]
[1758418557124,0.1238393,115620.0,115610.0,0.90420661]
[1758418558730,0.1238393,115620.0,115610.0,0.81776071]
[1758418561728,0.1238393,115620.0,115610.0,0.81777558]
[1758418562629,0.1238393,115620.0,115610.0,1.02012063]
[1758418565939,0.1238393,115620.0,115610.0,0.65932063]
[1758418566139,0.1238393,115620.0,115610.0,1.02012063]
[1758418568948,0.1238393,115620.0,115610.0,1.10656653]
[1758418572350,0.1238393,115620.0,115610.0,0.74576653]
[1758418572652,0.1238393,115620.0,115610.0,1.10656653]
[1758418578559,0.1238393,115620.0,115610.0,0.74576653]
[1758418578760,0.1238393,115620.0,115610.0,1.10656653]
[1758418579359,0.1238393,115620.0,115610.0,0.83999095]
[1758418579558,0.1238393,115620.0,115610.0,1.10656653]
[1758418584462,0.9038393,115620.0,115610.0,1.10656653]
[1758418585864,0.9038393,115620.0,115610.0,1.26223876]
[1758418586772,0.9038393,115620.0,115610.0,1.05989371]
[1758418589062,0.9038393,115620.0,115610.0,0.90422148]
[1758418590068,0.1238393,115620.0,115610.0,0.90422148]
[1758418590269,0.8901393,115620.0,115610.0,0.91103148]
[1758418591466,0.8901393,115620.0,115610.0,0.55023148]
[1758418591665,0.8901393,115620.0,115610.0,0.91103148]
[1758418592366,0.8901393,115620.0,115610.0,1.06670371]
[1758418593268,0.8901393,115620.0,115610.0,0.91103148]
[1758418593969,0.8901393,115620.0,115610.0,1.11337653]
[1758418595973,0.8901393,115620.0,115610.0,1.10656653]
[1758418596171,0.9035593,115620.0,115610.0,1.10656653]
[1758418597967,0.9035593,115620.0,115610.0,0.74576653]
[1758418598168,0.9035593,115620.0,115610.0,1.10656653]
[1758418604970,0.9035593,115620.0,115610.0,0.75354505]
[1758418605176,1.17013488,115620.0,115610.0,0.54841741]
[1758418605866,1.17013488,115620.0,115610.0,0.34607236]
[1758418607177,1.17013488,115620.0,115610.0,0.61264794]
[1758418607476,0.9035593,115620.0,115610.0,0.61264794]
[1758418611480,0.9035593,115620.0,115610.0,0.45697558]
[1758418618286,0.9035593,115620.0,115610.0,0.61261817]
[1758418619798,0.9035593,115620.0,115610.0,0.45697558]
[1758418621798,1.17018615,115620.0,115610.0,0.45702685]
[1758418626401,1.17018615,115620.0,115610.0,0.6593719]
[1758418627003,0.39018615,115620.0,115610.0,0.6593719]
[1758418627304,1.17054615,115620.0,115610.0,0.6593719]
[1758418627703,0.9039193,115620.0,115610.0,0.45702685]
[1758418627902,1.17054615,115620.0,115610.0,0.45702685]
[1758418636202,1.17054615,115620.0,115610.0,0.6593719]
[1758418638207,0.1235593,115620.0,115610.0,0.6593719]
[1758418638408,1.17042615,115620.0,115610.0,0.6593719]
[1758418648816,0.9037993,115620.0,115610.0,0.6593719]
[1758418649016,1.17042615,115620.0,115610.0,0.6593719]
[1758418650716,0.9037993,115620.0,115610.0,0.6593719]
[1758418650916,1.17042615,115620.0,115610.0,0.6593719]
[1758418652722,1.17042615,115620.0,115610.0,0.39274505]
[1758418652923,1.17042615,115620.0,115610.0,0.6593719]
[1758418653116,1.17042615,115620.0,115610.0,0.45702685]
[1758418657826,1.17042615,115620.0,115610.0,0.6593719]
[1758418660327,0.9037993,115620.0,115610.0,0.6593719]
[1758418660530,1.17042615,115620.0,115610.0,0.6593719]
[1758418661430,1.17042615,115620.0,115610.0,0.45702685]
[1758418662626,1.17042615,115620.0,115610.0,0.6593719]
[1758418663229,0.39018615,115620.0,115610.0,0.6593719]
[1758418663631,1.17130615,115620.0,115610.0,0.6593719]
[1758418664132,0.39018615,115620.0,115610.0,0.6593719]
[1758418664330,1.17134615,115620.0,115610.0,0.6593719]
[1758418668237,0.9047193,115620.0,115610.0,0.6593719]
[1758418668432,1.17134615,115620.0,115610.0,0.6593719]
[1758418672242,1.17134615,115620.0,115610.0,0.45702685]
[1758418672743,0.9047193,115620.0,115610.0,0.45702685]
[1758418673042,1.17134615,115620.0,115610.0,0.45702685]
[1758418676847,0.9047193,115620.0,115610.0,0.45702685]
[1758418678650,0.9047193,115620.0,115610.0,0.1904]
[1758418678953,1.17134615,115620.0,115610.0,0.61270122]
[1758418680556,1.17134615,115620.0,115610.0,0.45702685]
[1758418681454,0.9047193,115620.0,115610.0,0.45702685]
[1758418681655,1.17134615,115620.0,115610.0,0.45702685]
[1758418681954,1.17134615,115620.0,115610.0,0.6593719]
[1758418683761,0.9047193,115620.0,115610.0,0.65935754]
[1758418686762,0.9047193,115620.0,115610.0,0.45701249]
[1758418689162,0.9047193,115620.0,115610.0,0.65935754]
[1758418694959,0.9042793,115620.0,115610.0,0.65935754]
[1758418695765,0.9042393,115620.0,115610.0,0.65935754]
[1758418696560,0.1235593,115620.0,115610.0,0.65935754]
[1758418696869,0.9042393,115620.0,115610.0,0.65935754]
[1758418697764,0.9041993,115620.0,115610.0,0.65935754]
[1758418699667,0.1235593,115620.0,115610.0,0.65935754]
[1758418699864,0.9041993,115620.0,115610.0,0.65935754]
[1758418701167,0.1235593,115620.0,115610.0,0.65935754]
[1758418701464,0.9041593,115620.0,115610.0,0.65935754]
[1758418703166,0.1235593,115620.0,115610.0,0.65935754]
[1758418703367,0.9041193,115620.0,115610.0,0.65935754]
[1758418703767,0.1235593,115620.0,115610.0,0.65935754]
[1758418703967,0.9041193,115620.0,115610.0,0.65935754]
[1758418705670,0.1235593,115620.0,115610.0,0.65935754]
[1758418705870,0.9040793,115620.0,115610.0,0.65935754]
[1758418706470,0.1235593,115620.0,115610.0,0.65935754]
[1758418706676,0.9040393,115620.0,115610.0,0.65935754]
[1758418707071,0.1235593,115620.0,115610.0,0.65935754]
[1758418707370,0.9040393,115620.0,115610.0,0.65935754]
[1758418708473,0.1235593,115620.0,115610.0,0.65935754]
[1758418708769,0.9039993,115620.0,115610.0,0.65935754]
[1758418709368,1.17061179,115620.0,115610.0,0.39274505]
[1758418709768,1.17061179,115620.0,115610.0,0.1904]
[1758418710066,0.9039993,115620.0,115610.0,0.1904]
[1758418710568,0.39017179,115620.0,115610.0,0.45701249]
[1758418710870,1.17061179,115620.0,115610.0,0.45701249]
[1758418712073,0.39017179,115620.0,115610.0,0.45701249]
[1758418712273,1.17057179,115620.0,115610.0,0.45701249]
[1758418712876,0.9039593,115620.0,115610.0,0.45701249]
[1758418713173,1.17057179,115620.0,115610.0,0.45701249]
[1758418714471,1.17057179,115620.0,115610.0,0.65935754]
[1758418715680,0.39017179,115620.0,115610.0,0.65935754]
[1758418715977,1.17053179,115620.0,115610.0,0.65935754]
[1758418718382,0.39017179,115620.0,115610.0,0.65935754]
[1758418718581,1.17053179,115620.0,115610.0,0.65935754]
[1758418723284,1.17053179,115620.0,115610.0,0.39274505]
[1758418723487,1.17053179,115620.0,115610.0,0.65935754]
[1758418726083,0.9039193,115620.0,115610.0,0.65935754]
[1758418727587,0.9037593,115620.0,115610.0,0.65935754]
[1758418735193,1.17037179,115620.0,115610.0,0.65935754]
[1758418736996,0.9037593,115620.0,115610.0,0.65935754]
[1758418744603,0.9037193,115620.0,115610.0,0.65935754]
[1758418745707,0.9037193,115620.0,115610.0,0.65936835]
[1758418745908,1.1703426,115620.0,115610.0,0.65936835]
[1758418748711,1.1703426,115620.0,115610.0,0.39274505]
[1758418748911,1.1703426,115620.0,115610.0,0.65936835]
[1758418749111,1.1703426,115620.0,115610.0,0.39274505]
[1758418749305,1.1703426,115620.0,115610.0,0.65936835]
[1758418756812,1.1703426,115620.0,115610.0,0.4570233]
[1758418758820,1.1703426,115620.0,115610.0,0.61269691]
[1758418764520,1.1703426,115620.0,115610.0,0.4570233]
[1758418765717,0.3901826,115620.0,115610.0,0.4570233]
[1758418766015,1.1703026,115620.0,115610.0,0.4570233]
[1758418768720,1.1703026,115620.0,115610.0,0.65936835]
[1758418773022,1.1703026,115620.0,115610.0,0.39274505]
[1758418773222,1.1703026,115620.0,115610.0,0.65936835]
[1758418778432,1.1703026,115620.0,115610.0,0.4570233]
[1758418779230,1.4369259,115620.0,115610.0,0.4570233]
[1758418779827,1.1703026,115620.0,115610.0,0.4570233]
[1758418783325,1.1703026,115620.0,115610.0,0.65936835]
[1758418785231,1.1703026,115620.0,115610.0,0.39274505]
[1758418785431,1.1703026,115620.0,115610.0,0.65936835]
[1758418790137,0.9036793,115620.0,115610.0,0.65936835]
[1758418790538,1.1703026,115620.0,115610.0,0.65936835]
[1758418801243,1.4369259,115620.0,115610.0,0.65936835]
[1758418802342,1.1703026,115620.0,115610.0,0.65936835]
[1758418803633,1.1703026,115620.0,115610.0,0.4570233]
[1758418807747,1.1703092,115620.0,115610.0,0.1904]
[1758418808750,1.1703092,115620.0,115610.0,0.3460609]
[1758418810552,0.9036793,115620.0,115610.0,0.3460609]
[1758418819155,0.9036793,115620.0,115610.0,0.1904]
[1758418820459,1.1703092,115620.0,115610.0,0.1904]
[1758418820757,1.1703092,115620.0,115610.0,0.39274505]
[1758418829068,1.1703092,115620.0,115610.0,0.1904]
[1758418829472,1.1703092,115620.0,115610.0,0.34607649]
[1758418832575,0.9036793,115620.0,115610.0,0.34607649]
[1758418832776,1.1703092,115620.0,115610.0,0.34607649]
[1758418834281,1.1703092,115620.0,115610.0,0.1904]
[1758418835981,0.9036793,115620.0,115610.0,0.1904]
[1758418836177,1.1703092,115620.0,115610.0,0.1904]
[1758418839082,1.1703092,115620.0,115610.0,0.34607645]
[1758418853698,0.9036793,115620.0,115610.0,0.34607645]
[1758418853997,1.1703092,115620.0,115610.0,0.34607645]
[1758418855098,1.1703092,115620.0,115610.0,0.1904]
[1758418856499,0.9036793,115620.0,115610.0,0.1904]
[1758418856700,0.9036793,115620.0,115610.0,0.34607662]
[1758418860000,1.1703092,115620.0,115610.0,0.34607662]
[1758418860599,1.1703092,115620.0,115610.0,0.1904]
[1758418860897,0.9036793,115620.0,115610.0,0.1904]
[1758418861491,0.9036793,115620.0,115610.0,0.34607662]
[1758418865504,0.9036793,115620.0,115610.0,0.1904]
[1758418867701,0.9036793,115620.0,115610.0,0.34607663]
[1758418867906,1.17031014,115620.0,115610.0,0.61270747]
[1758418868603,1.17031014,115620.0,115610.0,0.45703084]
[1758418869011,1.17031014,115620.0,115610.0,0.1904]
[1758418869414,1.43694098,115620.0,115610.0,0.1904]
[1758418869715,1.43694098,115620.0,115610.0,0.45703084]
[1758418869900,1.17031014,115620.0,115610.0,0.45703084]
[1758418870811,1.17031014,115620.0,115610.0,0.1904]
[1758418871002,1.43694098,115620.0,115610.0,0.1904]
[1758418871309,1.43694098,115620.0,115610.0,0.39274505]
[1758418872014,1.79774098,115620.0,115610.0,0.39274505]
[1758418872410,1.79774098,115620.0,115610.0,0.65937589]
[1758418875414,1.53111014,115620.0,115610.0,0.65937589]
[1758418876012,1.79774098,115620.0,115610.0,0.65937589]
[1758418876517,1.53111014,115620.0,115610.0,0.65937589]
[1758418877213,1.53111014,115620.0,115610.0,0.45703084]
[1758418878113,1.79774098,115620.0,115610.0,0.45703084]
[1758418878509,1.79774098,115620.0,115610.0,0.65937589]
[1758418879613,1.79774098,115620.0,115610.0,0.45703084]
[1758418881121,1.79774098,115620.0,115610.0,0.61265488]
[1758418884518,1.79774098,115620.0,115610.0,0.34602404]
[1758418884719,1.79774098,115620.0,115610.0,0.61265488]
[1758418885419,1.79774098,115620.0,115610.0,0.34602404]
[1758418885619,1.79774098,115620.0,115610.0,0.61265488]
[1758418886122,1.79774098,115620.0,115610.0,0.34602404]
[1758418886322,1.79774098,115620.0,115610.0,0.61265488]
[1758418889520,1.79774098,115620.0,115610.0,0.44878488]
[1758418890125,1.79774098,115620.0,115610.0,0.18215404]
[1758418890322,1.79774098,115620.0,115610.0,0.44878488]
[1758418890618,1.01762098,115620.0,115610.0,0.44878488]
[1758418890823,1.79866098,115620.0,115610.0,0.44878488]
[1758418895630,1.79866098,115620.0,115610.0,0.29316084]
[1758418895931,1.79854098,115620.0,115610.0,0.29316084]
[1758418896427,1.53191014,115620.0,115610.0,0.29316084]
[1758418900429,1.53191014,115620.0,115610.0,0.44878488]
[1758418907542,1.2652793,115620.0,115610.0,0.44878488]
[1758418907743,1.53191014,115620.0,115610.0,0.44878488]
[1758418909043,1.2652793,115620.0,115610.0,0.44878488]
[1758418909242,1.53191014,115620.0,115610.0,0.44878488]
[1758418910045,1.53191014,115620.0,115610.0,0.29316084]
[1758418910939,1.53191014,115620.0,115610.0,0.44878488]
[1758418911342,0.75099014,115620.0,115610.0,0.44878488]
[1758418911536,1.53191014,115620.0,115610.0,0.44878488]
[1758418914846,0.4843593,115620.0,115610.0,0.44878488]
[1758418915046,1.53187014,115620.0,115610.0,0.44878488]
[1758418916746,1.53183014,115620.0,115610.0,0.44878488]
[1758418917656,0.75099014,115620.0,115610.0,0.44878488]
[1758418917957,1.53211014,115620.0,115610.0,0.44878488]
[1758418918152,0.75099014,115620.0,115610.0,0.44878488]
[1758418918351,1.53223014,115620.0,115610.0,0.44878488]
[1758418919559,0.75099014,115620.0,115610.0,0.44878488]
[1758418919760,1.53223014,115620.0,115610.0,0.44878488]
[1758418920256,1.2655993,115620.0,115610.0,0.44878488]
[1758418920457,1.53223014,115620.0,115610.0,0.44878488]
[1758418920753,1.53223014,115620.0,115610.0,0.16062404]
[1758418920959,1.79886098,115620.0,115610.0,0.42725488]
[1758418921858,1.79886098,115620.0,115610.0,0.16062404]
[1758418922161,1.79886098,115620.0,115610.0,0.0054]
[1758418923958,1.79886098,115620.0,115610.0,0.16102404]
[1758418924764,1.79886098,115620.0,115610.0,0.005]
[1758418924955,1.79886098,115620.0,115610.0,0.0054]
[1758418928065,1.2655993,115620.0,115610.0,0.0054]
[1758418928266,1.79886098,115620.0,115610.0,0.0054]
[1758418929770,1.53227164,115620.0,115610.0,0.0054]
[1758418930269,1.53227164,115620.0,115610.0,0.16102404]
[1758418937569,1.53227164,115620.0,115610.0,0.0054]
[1758418944982,1.53227164,115620.0,115610.0,0.16102404]
[1758418945476,1.53227164,115620.0,115610.0,0.0054]
[1758418947181,1.53227164,115620.0,115610.0,0.16102404]
[1758418959789,1.53227164,115620.0,115610.0,0.18277404]
[1758418959976,1.53227164,115620.0,115610.0,0.16102404]
[1758418965890,1.17147164,115620.0,115610.0,0.16102404]
[1758418966090,0.75103164,115620.0,115610.0,0.16102404]
[1758418966390,1.53247164,115620.0,115610.0,0.16102404]
[1758418976409,1.17167164,115620.0,115610.0,0.16102404]
[1758418976611,1.53247164,115620.0,115610.0,0.16102404]
[1758418976911,1.17167164,115620.0,115610.0,0.16102404]
[1758418977209,1.53247164,115620.0,115610.0,0.16102404]
[1758418979913,1.17167164,115620.0,115610.0,0.16102404]
[1758418980211,1.53247164,115620.0,115610.0,0.16102404]
[1758418981414,1.17167164,115620.0,115610.0,0.16102404]
[1758418981609,1.53247164,115620.0,115610.0,0.16102404]
[1758418989714,1.79912566,115620.0,115610.0,0.16102404]
[1758418998832,1.79912566,115620.0,115610.0,0.0054]
[1758419006237,1.79912566,115620.0,115610.0,0.16109431]
[1758419006636,1.43832566,115620.0,115610.0,0.16109431]
[1758419006839,1.79912566,115620.0,115610.0,0.16109431]
[1758419016845,1.79912566,115620.0,115610.0,0.16109436]
[1758419017638,1.79912566,115620.0,115610.0,0.0054]
[1758419024752,1.79912566,115620.0,115610.0,0.16109406]
[1758419041658,1.79912566,115620.0,115610.0,0.0054]
[1758419051866,1.53246174,115620.0,115610.0,0.0054]